fUST/lending_fUST_20241202
["ID","MTS","AMOUNT","RATE_DAILY","PERIOD"]
[343955880,1733140243921,-150.23501971,0.00028493,7]
[343955881,1733140243930,-500.0,0.00028767,7]
[343955882,1733140243939,-571.47,0.00028767,7]
[343955883,1733140243948,-216.29498029,0.00028962,15]
[343955912,1733141225093,-5000.0,0.00020922,2]
[343955913,1733141225114,-163.0,0.00022,2]
[343955914,1733141225136,-157.0,0.00022,2]
[343955915,1733141225157,-163.0,0.00022192,2]
[343955916,1733141225179,-163.0,0.00023014,2]
[343955917,1733141225201,-384.721761,0.00023527,2]
[343955918,1733141225222,-250.0,0.0002358,2]
[343955919,1733141225245,-247.7745872,0.00023998,2]
[343955920,1733141225268,-167.0,0.00024164,2]
[343955921,1733141225289,-393.15366656,0.00025394,2]
[343955922,1733141225311,-300.0,0.0002547,2]
[343955923,1733141225331,-646.97460245,0.00025473,2]
[343955924,1733141225351,-500.0,0.00025473,2]
[343955925,1733141225371,-420.1966673,0.00025473,2]
[343955926,1733141225393,-500.0,0.0002549,2]
[343955927,1733141225413,-500.0,0.0002549,2]
[343955928,1733141225433,-500.0,0.0002549,2]
[343955929,1733141225454,-500.0,0.0002549,2]
[343955930,1733141225476,-500.0,0.0002549,2]
[343955931,1733141225497,-500.0,0.0002549,2]
[343955932,1733141225518,-500.0,0.0002549,2]
[343955933,1733141225539,-364.53704969,0.0002549,2]
[343955934,1733141225561,-398.20318868,0.0002549,2]
[343955935,1733141225582,-500.0,0.0002549,2]
[343955936,1733141225604,-296.61823424,0.0002549,2]
[343955937,1733141225623,-236.00705319,0.0002549,2]
[343955938,1733141225645,-500.0,0.0002549,2]
[343955939,1733141225668,-500.0,0.0002549,2]
[343955940,1733141225689,-500.0,0.0002549,2]
[343955941,1733141225712,-156.90331456,0.0002549,2]
[343955974,1733141431734,-163.0,0.00025775,2]
[343955975,1733141431744,-109.78050397,0.00026021,2]
[343955977,1733141431757,-393.15366656,0.00026021,2]
[343955978,1733141431770,-497.06582947,0.00026021,2]
[343955979,1733141431779,-300.0,0.00026089,2]
[343955980,1733141431788,-9375.96253336,0.00026089,2]
[343955981,1733141431800,-60301.03746664,0.00026089,2]
[343955982,1733141431809,-300.0,0.00026089,2]
[343955983,1733141431819,-500.0,0.00026091,2]
[343955984,1733141431828,-500.0,0.00026091,2]
[343955985,1733141431837,-500.0,0.00026091,2]
[343955986,1733141431847,-540.760592,0.00026091,2]
[343955988,1733141431857,-500.0,0.00026091,2]
[343955990,1733141431867,-500.0,0.00026091,2]
[343955993,1733141431877,-500.0,0.00026091,2]
[343955996,1733141431886,-500.0,0.00026091,2]
[343956000,1733141431899,-500.0,0.00026091,2]
[343956004,1733141431910,-500.0,0.00026091,2]
[343956007,1733141431919,-500.0,0.00026091,2]
[343956010,1733141431929,-500.0,0.00026091,2]
[343956013,1733141431939,-500.0,0.00026091,2]
[343956016,1733141431949,-500.0,0.00026091,2]
[343956017,1733141431958,-500.0,0.00026091,2]
[343956018,1733141431968,-500.0,0.00026091,2]
[343956019,1733141431977,-500.0,0.00026091,2]
[343956020,1733141431986,-500.0,0.00026091,2]
[343956021,1733141431996,-500.0,0.00026091,2]
[343956022,1733141432006,-500.0,0.00026091,2]
[343956023,1733141432016,-636.45370497,0.00026091,2]
[343956024,1733141432025,-500.0,0.00026091,2]
[343956025,1733141432034,-113.58970242,0.00026091,2]
[343956041,1733141437782,-1102.84799818,0.00024703,2]
[343956042,1733141437795,-386.41029758,0.00026091,2]
[343956043,1733141437805,-448.60733576,0.00026091,2]
[343956044,1733141437815,-579.66182343,0.00026091,2]
[343956045,1733141437825,-485.35497153,0.00026091,2]
[343956046,1733141437836,-14.64502847,0.00026091,2]
[343956047,1733141437846,-500.0,0.00026091,2]
[343956048,1733141437856,-364.7589916,0.00026091,2]
[343956049,1733141437865,-500.0,0.00026091,2]
[343956050,1733141437876,-66.86848053,0.00026465,7]
[343956051,1733141437887,-588.26823525,0.00026465,7]
[343956062,1733141440131,-988.56574324,0.00026465,7]
[343956063,1733141440143,-3356.29754098,0.00026465,7]
[343956064,1733141440154,-152.0,0.00026948,2]
[343956065,1733141440163,-875.837,0.0002708,2]
[343956066,1733141440173,-762.829,0.0002708,2]
[343956067,1733141440182,-3000.0,0.000273,2]
[343956068,1733141440192,-1271.82,0.000273,10]
[343956069,1733141440201,-1059.85,0.000273,10]
[343956070,1733141440210,-3315.02209256,0.0002731,2]
[343956097,1733141442687,-985.84057544,0.0002731,2]
[343956098,1733141442697,-502.69407726,0.00027373,2]
[343956099,1733141442708,-500.32748572,0.00027373,2]
[343956100,1733141442718,-500.0,0.00027373,2]
[343956101,1733141442727,-163.0,0.00027386,2]
[343956103,1733141442736,-444.01563521,0.00027396,2]
[343956104,1733141442747,-501.26958082,0.00027397,7]
[343956105,1733141442756,-500.0,0.00027397,7]
[343956106,1733141442766,-500.0,0.00027397,7]
[343956107,1733141442775,-397.79417803,0.00027397,7]
[343956108,1733141442796,-102.20582197,0.00027397,7]
[343956109,1733141442805,-500.0,0.00027397,7]
[343956110,1733141442815,-500.0,0.00027397,7]
[343956111,1733141442824,-500.0,0.00027397,7]
[343956112,1733141442833,-500.0,0.00027397,7]
[343956113,1733141442843,-500.0,0.00027397,7]
[343956115,1733141442852,-500.0,0.00027397,7]
[343956117,1733141442862,-500.0,0.00027397,7]
[343956118,1733141442871,-500.0,0.00027397,7]
[343956119,1733141442880,-500.0,0.00027397,7]
[343956120,1733141442889,-500.0,0.00027397,7]
[343956121,1733141442900,-500.0,0.00027397,7]
[343956122,1733141442909,-500.0,0.00027397,7]
[343956123,1733141442919,-211.9399534,0.00027397,2]
[343956124,1733141442929,-500.0,0.00027397,7]
[343956125,1733141442938,-500.0,0.00027397,7]
[343956126,1733141442948,-586.50733891,0.00027397,7]
[343956127,1733141442957,-162.45627297,0.00027397,7]
[343956128,1733141442967,-500.0,0.00027397,7]
[343956130,1733141442976,-500.0,0.00027397,7]
[343956132,1733141442985,-215.38024773,0.00027397,7]
[343956145,1733141445979,-883.21,0.000273,10]
[343956146,1733141445988,-284.61975227,0.00027397,7]
[343956147,1733141445998,-500.0,0.00027397,7]
[343956148,1733141446008,-240.32287367,0.00027397,7]
[343956149,1733141446017,-13.96897519,0.00027397,7]
[343956160,1733141470661,167.077839,0.00013973,2]
[343956174,1733142180146,166.811469,0.00013973,2]
[343956238,1733142634499,-1406.38795302,0.00020551,15]
[343956240,1733142634509,-5000.0,0.00021562,2]
[343956242,1733142634519,-157.0,0.00022,2]
[343956243,1733142634528,-300.0,0.00024999,2]
[343956244,1733142634538,-6679.64831335,0.00025,2]
[343956245,1733142634547,-12612.00225255,0.000255,2]
[343956246,1733142634558,-247.7745872,0.00025551,2]
[343956247,1733142634567,-384.721761,0.00025671,2]
[343956248,1733142634577,-250.0,0.0002621,2]
[343956249,1733142634586,-540.08571968,0.00026982,2]
[343956250,1733142634596,-48870.79231041,0.00027,5]
[343956251,1733142634606,-613.34,0.00027386,10]
[343956252,1733142634616,-780.98,0.00027386,10]
[343956253,1733142634625,-393.15366656,0.00027396,2]
[343956254,1733142634635,-310.81094465,0.00027396,2]
[343956255,1733142634644,-43704.66412221,0.00027396,2]
[343956256,1733142634653,-151.0,0.00027397,7]
[343956257,1733142634663,-500.0,0.00027397,7]
[343956258,1733142634673,-500.0,0.00027397,7]
[343956259,1733142634683,-500.0,0.00027397,7]
[343956260,1733142634692,-413.10226633,0.00027397,7]
[343956261,1733142634701,-500.0,0.00027397,7]
[343956262,1733142634710,-371.19947362,0.00027397,7]
[343956263,1733142634720,-500.0,0.00027397,7]
[343956264,1733142634731,-500.0,0.00027397,7]
[343956265,1733142634741,-500.0,0.00027397,7]
[343956266,1733142634751,-244.36779107,0.00027397,7]
[343956267,1733142634762,-500.0,0.00027397,7]
[343956268,1733142634774,-529.54498447,0.00027397,7]
[343956269,1733142634787,-590.46313967,0.00027397,7]
[343956270,1733142634798,-500.0,0.00027397,7]
[343956271,1733142634810,-500.0,0.00027397,7]
[343956272,1733142634822,-500.0,0.00027397,7]
[343956273,1733142634832,-500.0,0.00027397,7]
[343956274,1733142634843,-366.13827544,0.00027397,7]
[343956275,1733142634854,-500.0,0.00027397,7]
[343956276,1733142634867,-500.0,0.00027397,7]
[343956277,1733142634878,-500.0,0.00027397,7]
[343956278,1733142634889,-500.0,0.00027397,7]
[343956279,1733142634901,-500.0,0.00027397,7]
[343956280,1733142634914,-500.0,0.00027397,7]
[343956281,1733142634926,-503.75887897,0.00027397,7]
[343956282,1733142634938,-500.0,0.00027397,7]
[343956283,1733142634949,-500.0,0.00027397,7]
[343956284,1733142634961,-504.13571252,0.00027397,7]
[343956285,1733142634973,-500.0,0.00027397,7]
[343956286,1733142634992,-501.08140871,0.00027397,7]
[343956287,1733142635005,-500.0,0.00027397,7]
[343956288,1733142635016,-500.0,0.00027397,7]
[343956289,1733142635028,-500.0,0.00027397,7]
[343956290,1733142635039,-500.0,0.00027397,7]
[343956291,1733142635053,-500.0,0.00027397,7]
[343956292,1733142635065,-506.20508017,0.00027397,7]
[343956293,1733142635076,-500.0,0.00027397,7]
[343956294,1733142635087,-272.61151033,0.00027397,7]
[343956295,1733142635100,-500.0,0.00027397,7]
[343956296,1733142635111,-500.0,0.00027397,7]
[343956297,1733142635124,-500.0,0.00027397,7]
[343956298,1733142635134,-500.66772744,0.00027397,7]
[343956299,1733142635146,-500.0,0.00027397,7]
[343956300,1733142635157,-500.0,0.00027397,7]
[343956301,1733142635167,-503.68026087,0.00027397,7]
[343956302,1733142635177,-500.0,0.00027397,7]
[343956303,1733142635188,-443.37033891,0.00027397,7]
[343956304,1733142635200,-500.0,0.00027397,7]
[343956305,1733142635210,-500.0,0.00027397,2]
[343956306,1733142635221,-500.0,0.00027397,7]
[343956307,1733142635234,-500.0,0.00027397,7]
[343956308,1733142635246,-500.0,0.00027397,7]
[343956309,1733142635258,-500.0,0.00027397,7]
[343956310,1733142635269,-500.0,0.00027397,7]
[343956311,1733142635280,-500.0,0.00027397,7]
[343956312,1733142635292,-500.0,0.00027397,7]
[343956313,1733142635304,-506.69589701,0.00027397,7]
[343956314,1733142635315,-500.0,0.00027397,7]
[343956315,1733142635327,-500.0,0.00027397,7]
[343956316,1733142635339,-504.23513309,0.00027397,7]
[343956317,1733142635351,-500.0,0.00027397,7]
[343956318,1733142635363,-500.0,0.00027397,7]
[343956319,1733142635374,-500.0,0.00027397,7]
[343956320,1733142635385,-500.0,0.00027397,7]
[343956321,1733142635395,-500.0,0.00027397,7]
[343956322,1733142635405,-509.56680586,0.00027397,7]
[343956323,1733142635416,-500.0,0.00027397,7]
[343956324,1733142635426,-500.0,0.00027397,7]
[343956325,1733142635436,-500.0,0.00027397,7]
[343956326,1733142635448,-507.97935063,0.00027397,7]
[343956327,1733142635460,-500.0,0.00027397,7]
[343956328,1733142635472,-410.92024258,0.00027397,7]
[343956329,1733142635486,-500.0,0.00027397,7]
[343956330,1733142635499,-500.0,0.00027397,7]
[343956331,1733142635509,-500.0,0.00027397,7]
[343956332,1733142635519,-218.46920898,0.00027397,7]
[343956333,1733142635529,-500.90807541,0.00027397,7]
[343956334,1733142635539,-500.0,0.00027397,7]
[343956335,1733142635550,-151.0,0.00027397,7]
[343956336,1733142635563,-500.0,0.00027397,7]
[343956337,1733142635574,-500.0,0.00027397,7]
[343956338,1733142635586,-500.0,0.00027397,7]
[343956339,1733142635597,-500.0,0.00027397,7]
[343956340,1733142635607,-500.0,0.00027397,7]
[343956341,1733142635618,-500.0,0.00027397,7]
[343956342,1733142635628,-500.0,0.00027397,7]
[343956343,1733142635639,-506.13706304,0.00027397,7]
[343956344,1733142635649,-500.0,0.00027397,7]
[343956345,1733142635659,-500.0,0.00027397,7]
[343956346,1733142635669,-506.78851728,0.00027397,7]
[343956347,1733142635680,-200.0,0.00027397,7]
[343956348,1733142635692,-500.0,0.00027397,7]
[343956349,1733142635703,-500.0,0.00027397,7]
[343956350,1733142635713,-500.0,0.00027397,7]
[343956351,1733142635723,-500.0,0.00027397,7]
[343956352,1733142635738,-500.0,0.00027397,7]
[343956353,1733142635753,-515.28252766,0.00027397,7]
[343956354,1733142635763,-602.14749427,0.00027397,7]
[343956355,1733142635775,-571.28106694,0.00027397,7]
[343956356,1733142635787,-500.0,0.00027397,7]
[343956357,1733142635797,-503.45166271,0.00027397,7]
[343956358,1733142635807,-165.0847072,0.00027397,7]
[343956359,1733142635817,-504.09027087,0.00027397,7]
[343956360,1733142635827,-208.65918451,0.00027397,7]
[343956361,1733142635838,-500.0,0.00027397,7]
[343956362,1733142635850,-500.0,0.00027397,7]
[343956363,1733142635860,-500.0,0.00027397,7]
[343956364,1733142635871,-500.0,0.00027397,7]
[343956365,1733142635881,-151.0,0.00027397,7]
[343956366,1733142635892,-500.0,0.00027397,7]
[343956367,1733142635903,-500.0,0.00027397,7]
[343956368,1733142635915,-500.0,0.00027397,7]
[343956369,1733142635925,-500.0,0.00027397,7]
[343956370,1733142635935,-500.0,0.00027397,7]
[343956371,1733142635945,-500.0,0.00027397,7]
[343956372,1733142635956,-500.0,0.00027397,7]
[343956373,1733142635966,-500.0,0.00027397,7]
[343956374,1733142635977,-500.0,0.00027397,7]
[343956375,1733142635999,-500.0,0.00027397,7]
[343956376,1733142636010,-500.0,0.00027397,7]
[343956377,1733142636159,-500.0,0.00027397,7]
[343956378,1733142636169,-500.0,0.00027397,7]
[343956379,1733142636178,-500.0,0.00027397,7]
[343956380,1733142636188,-532.16759817,0.00027397,7]
[343956381,1733142636198,-500.0,0.00027397,7]
[343956382,1733142636207,-500.0,0.00027397,7]
[343956383,1733142636218,-500.0,0.00027397,7]
[343956384,1733142636227,-514.16210858,0.00027397,7]
[343956385,1733142636239,-500.0,0.00027397,7]
[343956386,1733142636248,-500.0,0.00027397,7]
[343956387,1733142636258,-500.0,0.00027397,7]
[343956388,1733142636267,-500.0,0.00027397,7]
[343956389,1733142636277,-500.0,0.00027397,7]
[343956390,1733142636286,-500.0,0.00027397,7]
[343956391,1733142636296,-500.0,0.00027397,7]
[343956392,1733142636305,-500.0,0.00027397,7]
[343956393,1733142636314,-500.0,0.00027397,7]
[343956394,1733142636324,-500.0,0.00027397,7]
[343956395,1733142636334,-500.0,0.00027397,7]
[343956396,1733142636344,-500.0,0.00027397,7]
[343956397,1733142636353,-500.0,0.00027397,7]
[343956398,1733142636364,-500.0,0.00027397,7]
[343956399,1733142636375,-500.0,0.00027397,7]
[343956400,1733142636386,-500.0,0.00027397,7]
[343956401,1733142636396,-500.0,0.00027397,7]
[343956402,1733142636405,-500.0,0.00027397,7]
[343956403,1733142636416,-500.0,0.00027397,7]
[343956404,1733142636425,-151.0,0.00027397,7]
[343956405,1733142636434,-500.0,0.00027397,7]
[343956406,1733142636444,-539.41640373,0.00027397,7]
[343956407,1733142636453,-500.0,0.00027397,7]
[343956408,1733142636463,-434.82773007,0.00027397,7]
[343956409,1733142636472,-500.0,0.00027397,7]
[343956410,1733142636483,-500.0,0.00027397,7]
[343956411,1733142636493,-224.69966137,0.00027397,7]
[343956412,1733142636502,-597.74081355,0.00027397,7]
[343956413,1733142636511,-175.986646,0.00027397,7]
[343956414,1733142636520,-500.0,0.00027397,7]
[343956415,1733142636530,-500.0,0.00027397,7]
[343956416,1733142636540,-175.986646,0.00027397,7]
[343956417,1733142636549,-500.0,0.00027397,7]
[343956418,1733142636558,-516.22888079,0.00027397,7]
[343956419,1733142636567,-500.0,0.00027397,7]
[343956420,1733142636576,-500.0,0.00027397,7]
[343956421,1733142636586,-411.8181777,0.00027397,7]
[343956422,1733142636596,-500.0,0.00027397,7]
[343956423,1733142636606,-500.0,0.00027397,7]
[343956424,1733142636615,-523.94361315,0.00027397,7]
[343956425,1733142636624,-500.0,0.00027397,7]
[343956426,1733142636634,-500.0,0.00027397,7]
[343956427,1733142636643,-500.0,0.00027397,7]
[343956428,1733142636653,-500.0,0.00027397,7]
[343956429,1733142636662,-396.6780658,0.00027397,7]
[343956430,1733142636672,-500.0,0.00027397,7]
[343956431,1733142636681,-500.0,0.00027397,7]
[343956432,1733142636691,-500.0,0.00027397,7]
[343956433,1733142636701,-501.70128612,0.00027397,7]
[343956434,1733142636710,-500.0,0.00027397,7]
[343956435,1733142636720,-265.27,0.00027397,7]
[343956436,1733142636730,-500.0,0.00027397,7]
[343956437,1733142636742,-240.32287367,0.00027397,7]
[343956438,1733142636752,-500.0,0.00027397,7]
[343956439,1733142636762,-500.0,0.00027397,7]
[343956440,1733142636771,-518.28564406,0.00027397,7]
[343956441,1733142636781,-500.0,0.00027397,7]
[343956442,1733142636791,-309.5398032,0.00027397,7]
[343956443,1733142636801,-500.0,0.00027397,7]
[343956444,1733142636811,-238.37434375,0.00027397,7]
[343956445,1733142636820,-500.0,0.00027397,7]
[343956446,1733142636830,-500.0,0.00027397,7]
[343956447,1733142636839,-500.71809583,0.00027397,7]
[343956448,1733142636848,-500.0,0.00027397,7]
[343956449,1733142636857,-500.0,0.00027397,7]
[343956450,1733142636866,-500.0,0.00027397,7]
[343956451,1733142636876,-500.0,0.00027397,7]
[343956452,1733142636885,-500.0,0.00027397,7]
[343956453,1733142636896,-500.0,0.00027397,7]
[343956454,1733142636905,-500.0,0.00027397,7]
[343956455,1733142636915,-151.0,0.00027397,7]
[343956456,1733142636924,-500.0,0.00027397,7]
[343956457,1733142636934,-500.0,0.00027397,7]
[343956458,1733142636943,-500.0,0.00027397,7]
[343956459,1733142636953,-500.0,0.00027397,7]
[343956460,1733142636962,-260.366934,0.00027397,7]
[343956461,1733142636971,-500.0,0.00027397,7]
[343956462,1733142636984,-500.0,0.00027397,7]
[343956463,1733142636994,-511.24698668,0.00027397,7]
[343956464,1733142637004,-500.0,0.00027397,7]
[343956465,1733142637013,-500.0,0.00027397,7]
[343956466,1733142637023,-500.0,0.00027397,7]
[343956467,1733142637033,-500.0,0.00027397,7]
[343956468,1733142637043,-500.0,0.00027397,7]
[343956469,1733142637056,-503.36772656,0.00027397,7]
[343956470,1733142637066,-500.0,0.00027397,7]
[343956471,1733142637076,-500.0,0.00027397,7]
[343956472,1733142637087,-500.0,0.00027397,7]
[343956473,1733142637099,-500.0,0.00027397,7]
[343956474,1733142637108,-532.92822498,0.00027397,7]
[343956475,1733142637118,-500.0,0.00027397,7]
[343956476,1733142637129,-500.0,0.00027397,7]
[343956477,1733142637138,-500.0,0.00027397,7]
[343956478,1733142637148,-308.64902075,0.00027397,7]
[343956479,1733142637157,-1953.78,0.00027397,7]
[343956480,1733142637167,-500.0,0.00027397,7]
[343956481,1733142637176,-500.0,0.00027397,7]
[343956482,1733142637186,-500.0,0.00027397,7]
[343956483,1733142637197,-500.0,0.00027397,7]
[343956484,1733142637207,-500.0,0.00027397,7]
[343956485,1733142637217,-500.0,0.00027397,7]
[343956486,1733142637227,-500.0,0.00027397,7]
[343956487,1733142637240,-500.0,0.00027397,7]
[343956488,1733142637249,-500.0,0.00027397,7]
[343956489,1733142637259,-500.0,0.00027397,7]
[343956490,1733142637269,-500.0,0.00027397,7]
[343956491,1733142637278,-500.0,0.00027397,7]
[343956492,1733142637288,-500.0,0.00027397,7]
[343956493,1733142637298,-500.0,0.00027397,7]
[343956494,1733142637307,-500.0,0.00027397,7]
[343956495,1733142637317,-500.0,0.00027397,7]
[343956496,1733142637327,-500.0,0.00027397,7]
[343956497,1733142637336,-500.0,0.00027397,7]
[343956498,1733142637345,-500.0,0.00027397,7]
[343956499,1733142637355,-500.0,0.00027397,7]
[343956500,1733142637364,-530.35754393,0.00027397,7]
[343956501,1733142637373,-500.0,0.00027397,7]
[343956502,1733142637383,-594.42,0.00027397,7]
[343956503,1733142637392,-500.0,0.00027397,7]
[343956504,1733142637402,-500.0,0.00027397,7]
[343956506,1733142637411,-500.0,0.00027397,7]
[343956508,1733142637420,-500.0,0.00027397,7]
[343956509,1733142637429,-500.0,0.00027397,7]
[343956510,1733142637438,-500.0,0.00027397,7]
[343956511,1733142637448,-500.0,0.00027397,7]
[343956512,1733142637458,-599.68151598,0.00027397,7]
[343956513,1733142637467,-522.69880596,0.00027397,7]
[343956514,1733142637477,-500.0,0.00027397,7]
[343956515,1733142637490,-500.0,0.00027397,7]
[343956516,1733142637499,-500.0,0.00027397,7]
[343956517,1733142637509,-500.0,0.00027397,7]
[343956518,1733142637519,-500.0,0.00027397,7]
[343956519,1733142637528,-500.0,0.00027397,7]
[343956520,1733142637538,-511.37935442,0.00027397,7]
[343956521,1733142637548,-500.0,0.00027397,7]
[343956522,1733142637557,-500.0,0.00027397,7]
[343956523,1733142637567,-500.0,0.00027397,7]
[343956524,1733142637576,-500.0,0.00027397,7]
[343956525,1733142637586,-500.0,0.00027397,7]
[343956526,1733142637595,-500.0,0.00027397,7]
[343956527,1733142637605,-500.0,0.00027397,7]
[343956528,1733142637616,-500.0,0.00027397,7]
[343956529,1733142637625,-506.41192487,0.00027397,7]
[343956530,1733142637634,-500.0,0.00027397,7]
[343956531,1733142637643,-500.0,0.00027397,7]
[343956532,1733142637652,-500.0,0.00027397,7]
[343956533,1733142637662,-500.0,0.00027397,7]
[343956534,1733142637671,-500.0,0.00027397,7]
[343956535,1733142637680,-503.1414004,0.00027397,7]
[343956536,1733142637689,-7636.25,0.00027397,7]
[343956537,1733142637699,-500.0,0.00027397,7]
[343956538,1733142637708,-500.0,0.00027397,7]
[343956539,1733142637718,-500.0,0.00027397,7]
[343956540,1733142637727,-500.0,0.00027397,7]
[343956541,1733142637739,-500.0,0.00027397,7]
[343956542,1733142637748,-500.0,0.00027397,7]
[343956543,1733142637757,-500.0,0.00027397,7]
[343956544,1733142637767,-500.0,0.00027397,7]
[343956545,1733142637775,-500.0,0.00027397,7]
[343956546,1733142637785,-500.0,0.00027397,7]
[343956547,1733142637795,-500.0,0.00027397,7]
[343956548,1733142637804,-500.0,0.00027397,7]
[343956549,1733142637814,-500.0,0.00027397,7]
[343956550,1733142637823,-500.0,0.00027397,7]
[343956551,1733142637832,-500.0,0.00027397,7]
[343956552,1733142637841,-500.0,0.00027397,7]
[343956553,1733142637851,-151.0,0.00027397,7]
[343956554,1733142637860,-938.05,0.00027397,7]
[343956555,1733142637870,-500.0,0.00027397,7]
[343956556,1733142637879,-500.0,0.00027397,7]
[343956557,1733142637889,-500.0,0.00027397,7]
[343956558,1733142637898,-500.0,0.00027397,7]
[343956559,1733142637906,-500.0,0.00027397,7]
[343956560,1733142637915,-500.0,0.00027397,7]
[343956561,1733142637925,-500.0,0.00027397,7]
[343956562,1733142637935,-500.0,0.00027397,7]
[343956563,1733142637945,-500.0,0.00027397,7]
[343956564,1733142637954,-500.0,0.00027397,7]
[343956565,1733142637964,-500.0,0.00027397,7]
[343956566,1733142637984,-500.0,0.00027397,7]
[343956567,1733142637994,-500.0,0.00027397,7]
[343956568,1733142638003,-655.85,0.00027397,7]
[343956569,1733142638012,-501.28417852,0.00027397,7]
[343956570,1733142638021,-514.64396556,0.00027397,7]
[343956571,1733142638030,-500.0,0.00027397,7]
[343956572,1733142638044,-501.0782654,0.00027397,7]
[343956573,1733142638054,-500.0,0.00027397,7]
[343956574,1733142638064,-500.0,0.00027397,7]
[343956575,1733142638074,-510.69278094,0.00027397,7]
[343956576,1733142638083,-500.36185358,0.00027397,7]
[343956577,1733142638093,-500.0,0.00027397,7]
[343956578,1733142638103,-500.0,0.00027397,7]
[343956579,1733142638113,-500.0,0.00027397,7]
[343956580,1733142638124,-500.0,0.00027397,7]
[343956581,1733142638134,-640.47762436,0.00027397,7]
[343956582,1733142638143,-500.0,0.00027397,7]
[343956583,1733142638154,-500.0,0.00027397,7]
[343956584,1733142638163,-151.327643,0.00027397,2]
[343956585,1733142638173,-500.0,0.00027397,7]
[343956586,1733142638183,-500.0,0.00027397,7]
[343956587,1733142638193,-449.61718372,0.00027397,7]
[343956588,1733142638203,-500.0,0.00027397,7]
[343956589,1733142638214,-500.0,0.00027397,7]
[343956590,1733142638223,-500.0,0.00027397,7]
[343956591,1733142638236,-500.0,0.00027397,7]
[343956592,1733142638245,-500.0,0.00027397,7]
[343956593,1733142638255,-500.0,0.00027397,7]
[343956594,1733142638264,-500.0,0.00027397,7]
[343956595,1733142638274,-504.33439756,0.00027397,7]
[343956596,1733142638284,-500.0,0.00027397,7]
[343956597,1733142638294,-500.0,0.00027397,7]
[343956598,1733142638304,-500.0,0.00027397,7]
[343956599,1733142638314,-500.0,0.00027397,7]
[343956600,1733142638323,-500.0,0.00027397,2]
[343956601,1733142638332,-500.0,0.00027397,7]
[343956602,1733142638341,-235.38776686,0.00027397,2]
[343956603,1733142638351,-540.08571964,0.00027457,2]
[343956604,1733142638361,-420.0,0.00027499,2]
[343956605,1733142638371,-6666.0,0.00027571,2]
[343956606,1733142638380,-666.0,0.00027571,2]
[343956607,1733142638390,-500.000001,0.000276,24]
[343956608,1733142638400,-151.0,0.0002767,7]
[343956609,1733142638410,-240.807273,0.0002767,7]
[343956610,1733142638419,-240.807273,0.0002767,7]
[343956611,1733142638429,-151.0,0.00027671,7]
[343956612,1733142638439,-151.0,0.00027671,7]
[343956613,1733142638448,-152.572939,0.00027671,7]
[343956614,1733142638458,-151.0,0.00027671,7]
[343956615,1733142638467,-292.70064732,0.00027671,7]
[343956616,1733142638477,-151.0,0.00027671,7]
[343956617,1733142638490,-501.84404072,0.00027671,7]
[343956618,1733142638499,-501.18096988,0.00027671,7]